bitfinex-derivatives/quotes_ETHF0:USTF0_20250616
["timestamp","ask_amount","ask_price","bid_price","bid_amount"]
[1750046508945,0.77862,2568.3,2568.1,2.69435]
[1750046509353,0.77863,2568.2,2568.1,1.9157]
[1750046509549,3.98642,2568.3,2568.1,2.69436]
[1750046509749,0.77863,2568.2,2568.1,1.9157]
[1750046510051,0.77863,2568.2,2568.1,0.6689]
[1750046510256,24.71163,2568.2,2568.1,0.6689]
[1750046510446,23.933,2568.2,2568.1,1.44756]
[1750046510750,24.71063,2568.2,2568.1,1.83203635]
[1750046511050,0.77869,2568.0,2567.9,1.23634824]
[1750046511242,3.98649,2568.0,2567.9,1.23634824]
[1750046511648,0.77869,2568.0,2567.9,0.85193189]
[1750046511948,0.77866,2568.1,2567.9,0.85193189]
[1750046512244,24.71064,2568.2,2567.9,1.23634824]
[1750046512551,9.4618,2568.3,2568.2,0.77863]
[1750046512758,33.3998,2568.3,2568.2,0.77863]
[1750046513049,34.1784,2568.3,2568.2,2.70453]
[1750046513548,34.1784,2568.3,2568.2,1.9259]
[1750046513850,34.1784,2568.3,2568.2,0.6182]
[1750046514052,27.9244,2568.3,2568.2,0.6182]
[1750046514954,27.9244,2568.3,2568.2,1.39683]
[1750046515157,3.2078,2568.3,2568.2,1.39683]
[1750046515452,23.93283783,2568.4,2568.3,0.7786]
[1750046515650,0.78440783,2568.4,2568.3,0.7786]
[1750046515848,0.00583783,2568.4,2568.3,0.7786]
[1750046516048,3.2078,2568.9,2568.3,1.16313635]
[1750046516252,3.2078,2568.9,2568.8,0.77845]
[1750046516654,3.2078,2568.9,2568.8,2.6368]
[1750046516847,3.98622,2568.9,2568.8,2.6368]
[1750046517048,0.77848,2568.7,2568.6,1.16313635]
[1750046517549,0.77848,2568.7,2568.5,0.6683]
[1750046517550,0.77851,2568.6,2568.5,0.6683]
[1750046517855,3.98631,2568.6,2568.5,0.6683]
[1750046518252,3.2078,2568.6,2568.3,2.60913635]
[1750046518452,3.2078,2568.6,2568.3,1.446]
[1750046518657,0.77854,2568.5,2568.3,1.446]
[1750046519854,0.77857,2568.5,2568.3,1.44599]
[1750046520558,0.77857,2568.4,2568.3,1.44599]
[1750046520754,0.77857,2568.4,2568.3,0.6674]
[1750046521257,0.77856,2568.5,2568.3,1.446]
[1750046521456,3.2078,2568.6,2568.5,0.77854]
[1750046521960,3.2078,2568.6,2568.5,2.06974]
[1750046522653,3.2078,2568.6,2568.5,3.23287635]
[1750046522855,3.2078,2568.6,2568.5,2.06974]
[1750046523153,3.2078,2568.6,2568.5,3.62232455]
[1750046523359,3.2078,2568.6,2568.5,2.06974]
[1750046524369,3.2078,2568.6,2568.5,3.2329376]
[1750046525065,0.00583783,2569.1,2568.5,2.84378455]
[1750046525066,3.21363783,2569.1,2568.5,2.84378455]
[1750046525270,0.77846,2568.8,2568.7,0.77846]
[1750046525471,0.77846,2568.8,2568.7,2.70466]
[1750046526166,3.21363783,2569.1,2568.7,6.29282346]
[1750046526363,3.21363783,2569.1,2569.0,5.14500346]
[1750046526761,3.99198783,2569.1,2569.0,0.77838]
[1750046527064,3.21363783,2569.1,2569.0,0.77838]
[1750046527376,3.21363783,2569.1,2569.0,1.2989]
[1750046527570,3.99198783,2569.1,2569.0,1.2989]
[1750046527868,3.99198783,2569.1,2568.9,41.57841]
[1750046528073,3.99198783,2569.1,2568.8,6.8856]
[1750046528074,0.77838,2569.0,2568.8,6.8856]
[1750046528270,3.21363783,2569.1,2568.8,6.8856]
[1750046528469,3.21363783,2569.1,2569.0,0.77838]
[1750046528772,3.99200783,2569.1,2568.9,0.77839]
[1750046529067,3.21363783,2569.1,2569.0,0.77838]
[1750046529264,3.21363783,2569.1,2569.0,5.14500346]
[1750046530274,3.21363783,2569.1,2569.0,6.50840346]
[1750046531974,0.00583783,2569.1,2569.0,6.50840346]
[1750046532572,3.21363783,2569.1,2568.7,1.80879575]
[1750046532764,5.15959783,2569.1,2568.5,1.46031]
[1750046532973,0.77851,2568.6,2568.5,1.46031]
[1750046533275,0.77851,2568.6,2568.5,1.46034]
[1750046533475,0.77851,2568.6,2568.4,3.98636]
[1750046533683,0.7785,2568.7,2568.5,0.77854]
[1750046533986,0.77851,2568.6,2568.5,0.77854]
[1750046534478,0.77854,2568.5,2568.4,0.77857]
[1750046535182,3.98632,2568.6,2568.4,0.77857]
[1750046535478,0.77849,2568.7,2568.5,0.77851]
[1750046535978,0.77849,2568.7,2568.5,0.84588406]
[1750046536171,0.77851,2568.6,2568.5,0.06737406]
[1750046538982,0.77849,2568.7,2568.5,0.84591406]
[1750046539177,4.5104,2568.9,2568.5,0.06737406]
[1750046539382,0.77851,2568.6,2568.5,0.06737406]
[1750046539784,0.77849,2568.7,2568.5,0.84591406]
[1750046540082,3.2078,2568.9,2568.5,0.06737406]
[1750046540281,0.7785,2568.7,2568.5,0.84590406]
[1750046540485,0.77851,2568.6,2568.5,0.84590406]
[1750046541170,0.77851,2568.6,2568.5,0.06737406]
[1750046541371,4.4899,2568.9,2568.5,0.06737406]
[1750046541576,0.77846,2568.8,2568.6,0.77848]
[1750046541780,0.77848,2568.7,2568.5,0.84588406]
[1750046542482,0.77851,2568.6,2568.5,0.84591406]
[1750046542682,0.77849,2568.7,2568.5,0.84591406]
[1750046542883,0.77849,2568.7,2568.6,0.77851]
[1750046543084,0.77849,2568.7,2568.5,0.84589406]
[1750046544087,3.98624,2568.9,2568.5,1.22949209]
[1750046544283,0.77844,2568.9,2568.8,0.77845]
[1750046544580,0.00583783,2569.1,2569.0,0.77838]
[1750046544785,0.00583783,2569.1,2569.0,6.30888725]
[1750046545185,0.00583783,2569.1,2569.0,7.63048725]
[1750046546280,0.78418783,2569.1,2569.0,1.16388379]
[1750046547188,0.78418783,2569.1,2569.0,1.94226379]
[1750046547788,0.78418783,2569.1,2569.0,1.16388379]
[1750046548286,0.00583783,2569.1,2569.0,2.51346379]
[1750046549191,0.00583783,2569.1,2569.0,6.88008725]
[1750046549378,0.00583783,2569.1,2569.0,6.96900346]
[1750046549984,0.00583783,2569.1,2569.0,8.52058404]
[1750046551791,0.77824,2569.5,2569.3,0.77827]
[1750046552490,0.77826,2569.4,2569.3,0.77827]
[1750046552789,0.77825,2569.5,2569.3,2.18116503]
[1750046552991,3.21363783,2569.6,2569.4,2.18116503]
[1750046553190,3.21363783,2569.6,2569.5,0.77823]
[1750046553499,3.21363783,2569.6,2569.5,2.71833]
[1750046553893,3.99183783,2569.6,2569.5,0.6426]
[1750046554792,0.77829,2569.3,2569.2,1.16362451]
[1750046555189,0.77828,2569.4,2569.2,1.16362451]
[1750046555386,0.77826,2569.4,2569.3,1.16362451]
[1750046555600,0.77826,2569.4,2569.2,1.94192451]
[1750046555797,0.77826,2569.4,2569.3,0.77829]
[1750046556300,0.77829,2569.3,2569.2,1.94193451]
[1750046556599,0.77828,2569.4,2569.2,1.94193451]
[1750046557299,0.77829,2569.4,2569.2,1.94193451]
[1750046559095,1.3357,2569.5,2569.4,0.77826]
[1750046559400,3.99184783,2569.6,2569.5,0.77823]
[1750046559602,3.99184783,2569.6,2569.4,5.1421012]
[1750046560508,0.77823,2569.5,2569.4,5.1421012]
[1750046561706,3.21363783,2569.6,2569.5,0.77823]
[1750046562105,3.99183783,2569.6,2569.4,0.77824]
[1750046562406,3.99183783,2569.6,2569.5,0.77823]
[1750046562607,3.21363783,2569.6,2569.3,1.39778]
[1750046562798,0.77825,2569.5,2569.4,0.77826]
[1750046563206,0.77825,2569.5,2569.3,1.39778]
[1750046563903,0.77826,2569.4,2569.3,1.39778]
[1750046565605,0.77825,2569.5,2569.4,0.77826]
[1750046566198,0.77826,2569.4,2569.3,1.39777]
[1750046567105,0.77829,2569.4,2569.2,1.82592451]
[1750046567294,0.77829,2569.3,2569.2,1.82592451]
[1750046567699,0.77832,2569.2,2569.1,0.00583783]
[1750046568007,2.07242,2569.2,2569.1,0.00583783]
[1750046568198,2.07242,2569.2,2569.0,0.5712]
[1750046568199,0.77835,2569.1,2569.0,0.5712]
[1750046568399,2.03675,2569.1,2569.0,0.5712]
[1750046571403,1.2941,2569.2,2569.0,0.5712]
[1750046571606,0.77831,2569.3,2569.0,0.5712]
[1750046571907,0.77831,2569.3,2569.1,2.13563]
[1750046572309,0.77831,2569.3,2569.1,3.29925451]
[1750046572512,0.77831,2569.3,2569.2,0.77832]
[1750046572819,0.77826,2569.4,2569.3,0.77827]
[1750046573007,0.7783,2569.3,2569.1,2.52092451]
[1750046573206,0.77829,2569.4,2569.1,2.52092451]
[1750046573401,0.77829,2569.4,2569.3,0.06737406]
[1750046573710,7.00925,2569.5,2569.3,0.84566406]
[1750046574010,7.00925,2569.5,2569.3,1.49526406]
[1750046574205,7.00925,2569.5,2569.3,2.65888857]
[1750046574512,0.77826,2569.5,2569.3,2.65888857]
[1750046574708,0.77826,2569.4,2569.3,2.65888857]
[1750046575311,0.77824,2569.5,2569.3,1.88059857]
[1750046575511,0.77824,2569.5,2569.4,0.77826]
[1750046575810,3.21363783,2569.6,2569.5,0.77823]
[1750046576001,3.21363783,2569.6,2569.5,1.94185451]
[1750046576198,3.99183783,2569.6,2569.5,1.94185451]
[1750046576413,3.21363783,2569.6,2569.5,1.94185451]
[1750046576910,3.21363783,2569.6,2569.5,1.16362451]
[1750046576911,0.78403783,2569.6,2569.5,1.16362451]
[1750046577111,3.99183783,2569.6,2569.5,1.16362451]
[1750046577308,0.77823,2569.5,2569.4,2.52792451]
[1750046577708,0.77823,2569.5,2569.4,1.16362451]
[1750046580015,0.77823,2569.5,2569.4,1.94188451]
[1750046580217,0.77823,2569.5,2569.4,1.16362451]
[1750046580717,3.21363783,2569.6,2569.3,0.71697406]
[1750046580718,0.77826,2569.4,2569.3,1.23099857]
[1750046580906,3.64390953,2569.4,2569.3,0.06737406]
[1750046581107,8.64390953,2569.4,2569.3,8.4e-06]
[1750046581312,0.77835,2569.1,2569.0,0.5712]
[1750046581614,36.21779953,2569.1,2569.0,0.5712]
[1750046581915,41.21779953,2569.1,2569.0,0.5712]
[1750046582512,36.21779953,2569.1,2569.0,0.5712]
[1750046582915,34.03515,2569.1,2569.0,0.5712]
[1750046583215,3.98615,2569.1,2569.0,0.5712]
[1750046583416,34.03915,2569.1,2569.0,0.5712]
[1750046586921,34.03315,2569.1,2569.0,0.5712]
[1750046587718,35.39375,2569.1,2569.0,0.5712]
[1750046588512,5.34675,2569.1,2569.0,0.5712]
[1750046588820,34.03415,2569.1,2569.0,0.5712]
[1750046589322,34.02815,2569.1,2569.0,0.5712]
[1750046589523,3.98615,2569.1,2569.0,0.5712]
[1750046590118,3.98615,2569.1,2569.0,2.01878]
[1750046590321,3.2078,2569.1,2569.0,3.25868]
[1750046590521,3.98615,2569.1,2569.0,2.4803]
[1750046590823,0.77835,2569.1,2569.0,2.4803]
[1750046592324,3.98615,2569.1,2569.0,2.4803]
[1750046592829,10.17715,2569.1,2569.0,0.5712]
[1750046593028,12.05175,2569.1,2569.0,0.5712]
[1750046594728,10.17715,2569.1,2569.0,0.5712]
[1750046594929,34.03815,2569.1,2569.0,0.5712]
[1750046595718,27.84615,2569.1,2569.0,0.5712]
[1750046599231,3.2078,2569.4,2569.0,1.34958]
[1750046599531,0.77834,2569.2,2569.1,0.6748]
[1750046599833,30.82231,2569.3,2569.1,2.81485]
[1750046600136,3.2078,2569.4,2569.3,0.77829]
[1750046600428,0.78404783,2569.6,2569.4,0.77825]
[1750046600629,24.63304783,2569.6,2569.5,2.0365]
[1750046602032,24.64204783,2569.6,2569.5,2.0365]
[1750046602736,24.64204783,2569.6,2569.5,2.6076]
[1750046604337,0.00583783,2569.6,2569.5,3.38583]
[1750046604544,24.62703783,2569.6,2569.5,2.6076]
[1750046606827,0.00583783,2569.6,2569.5,3.38583]
[1750046607030,23.83583783,2569.6,2569.5,3.38583]
[1750046607832,24.61403783,2569.6,2569.5,3.38583]
[1750046608030,3.2078,2570.0,2569.8,0.77813]
[1750046608236,3.98588,2570.0,2569.9,1.9192]
[1750046608436,27.82288,2570.0,2569.9,1.9192]
[1750046609140,3.2078,2570.0,2569.9,2.69731]
[1750046609341,27.81788,2570.0,2569.9,0.6305]
[1750046609644,0.7782,2569.6,2569.5,0.5711]
[1750046609947,24.6122,2569.6,2569.5,0.5711]
[1750046610434,3.2078,2569.7,2569.5,0.5711]
[1750046610634,27.846,2569.7,2569.6,1.2515]
[1750046610937,24.6362,2569.7,2569.6,1.2515]
[1750046611439,27.844,2569.7,2569.6,1.2515]
[1750046612041,0.7782,2569.6,2569.5,0.5711]
[1750046612639,0.7782,2569.6,2569.5,1.34933]
[1750046613236,0.7782,2569.6,2569.5,0.5711]
[1750046616045,0.7782,2569.6,2569.5,0.63847406]
[1750046620645,5.7782,2569.6,2569.5,0.63263623]
[1750046620842,7.0354,2569.6,2569.5,0.63263623]
[1750046621039,7.0354,2569.6,2569.5,0.06737406]
[1750046621240,0.77838,2569.0,2568.9,0.6689]
[1750046621440,24.61738,2569.0,2568.9,0.6689]
[1750046623044,28.98321359,2569.0,2568.9,0.6689]
[1750046623349,0.77841,2568.9,2568.8,0.00583783]
[1750046624250,0.77841,2568.9,2568.8,0.78427783]
[1750046624443,23.839,2569.0,2568.9,0.77841]
[1750046624645,23.839,2569.0,2568.9,0.7784]
[1750046624646,23.833,2569.0,2568.9,0.7784]
[1750046624852,0.77838,2569.0,2568.9,1.365]
[1750046625451,0.77841,2568.9,2568.8,0.00583783]
[1750046628549,3.2078,2569.1,2568.8,0.00583783]
[1750046628752,0.77834,2569.2,2568.8,2.53589025]
[1750046628960,24.60734,2569.2,2569.0,0.77836]
[1750046629152,27.0368,2569.4,2569.2,0.77831]
[1750046629353,3.98608,2569.4,2569.2,0.77831]
[1750046629548,3.2078,2569.4,2569.3,0.77829]
[1750046629744,3.2078,2569.4,2569.3,1.94154242]
[1750046630151,3.2078,2569.4,2569.3,1.16325242]
[1750046630152,3.98606,2569.4,2569.3,1.16325242]
[1750046630357,3.98606,2569.4,2569.2,1.55158058]
[1750046630358,3.2078,2569.4,2569.1,3.23429242]
[1750046630558,0.77831,2569.3,2569.2,0.77832]
[1750046630856,0.77831,2569.3,2569.2,1.94157242]
[1750046631461,0.77831,2569.3,2569.2,1.16325242]
[1750046632870,0.77831,2569.3,2569.1,44.60895242]
[1750046633964,3.98608,2569.4,2569.2,1.16325242]
[1750046634260,3.98608,2569.4,2569.2,2.44785242]
[1750046635056,3.2078,2569.4,2569.3,0.77828]
[1750046635263,3.2078,2569.4,2569.3,2.44785242]
[1750046635757,3.2078,2569.4,2569.3,3.22614242]
[1750046636163,0.77823,2569.5,2569.3,3.61447058]
[1750046636359,0.77823,2569.5,2569.4,2.48462851]
[1750046637370,0.77823,2569.5,2569.4,1.16352851]
[1750046637562,5.15329,2569.7,2569.2,1.16352851]
[1750046637761,0.77829,2569.3,2569.2,1.16352851]
[1750046639063,0.77828,2569.4,2569.2,2.48462851]
[1750046639471,3.2078,2569.7,2569.2,2.48462851]
[1750046639674,0.77829,2569.3,2569.1,43.25622851]
[1750046639974,0.7783,2569.3,2569.2,1.16352851]
[1750046640175,0.7783,2569.3,2569.2,2.51442851]
[1750046640872,0.7783,2569.3,2569.2,1.3509]
[1750046641674,0.7783,2569.3,2569.2,2.51442851]
[1750046641974,0.77829,2569.3,2569.2,2.51442851]
[1750046642171,0.77829,2569.3,2569.2,1.3509]
[1750046642366,0.77829,2569.3,2569.2,2.51490592]
[1750046643469,0.77824,2569.5,2569.3,0.77828]
[1750046643776,0.77824,2569.5,2569.3,3.30001401]
[1750046643969,0.7782,2569.6,2569.4,1.94228401]
[1750046644164,0.7782,2569.6,2569.4,3.29998401]
[1750046644369,0.7782,2569.6,2569.5,0.6232]
[1750046644672,3.98599,2569.7,2569.5,2.56545401]
[1750046644871,3.98599,2569.7,2569.5,2.75912]
[1750046645072,3.98599,2569.7,2569.5,3.14493401]
[1750046645273,3.2078,2569.7,2569.5,3.14493401]
[1750046645463,3.98598,2569.7,2569.6,1.16403401]
[1750046645770,3.98598,2569.7,2569.6,3.89882401]
[1750046645771,3.2078,2569.7,2569.6,3.89882401]
[1750046646574,3.98596,2569.7,2569.6,1.9566]
[1750046646874,0.77816,2569.7,2569.6,1.9566]
[1750046647077,0.77816,2569.7,2569.6,3.12021208]
[1750046647971,0.77816,2569.7,2569.6,1.16361208]
[1750046648172,0.77819,2569.6,2569.5,0.6232]
[1750046650370,0.77826,2569.4,2569.3,1.16361208]
[1750046650573,0.77826,2569.4,2569.3,1.83401208]
[1750046650774,0.77829,2569.3,2569.2,1.23098614]
[1750046650972,0.77827,2569.4,2569.2,1.23098614]
[1750046651172,0.77827,2569.4,2569.2,2.00928614]
[1750046651470,0.77829,2569.3,2569.2,0.06737406]
[1750046651686,0.77841,2568.9,2568.8,1.16944991]
[1750046651872,0.77841,2568.9,2568.8,0.00583783]
[1750046653170,5.14219433,2568.9,2568.8,0.00583783]
[1750046653778,6.41099433,2568.9,2568.8,0.00583783]
[1750046655884,0.77841,2568.9,2568.8,0.00583783]
[1750046657381,2.09841,2568.9,2568.8,0.00583783]
[1750046657775,0.77841,2568.9,2568.8,0.00583783]
[1750046659174,29.998,2569.0,2568.8,0.00583783]
[1750046659175,0.77838,2569.0,2568.8,0.78425783]
[1750046659377,0.77838,2569.0,2568.8,2.13196783]
[1750046659681,0.77838,2569.0,2568.8,3.36295397]
[1750046659880,0.77838,2569.0,2568.8,4.04475397]
[1750046660587,0.77836,2569.1,2568.9,0.77838]
[1750046660779,0.77838,2569.0,2568.9,2.02399]
[1750046661283,25.1334,2569.3,2568.9,2.02399]
[1750046661482,0.77838,2569.0,2568.9,1.2456]
[1750046663383,0.77838,2569.0,2568.9,2.02401]
[1750046663679,0.77837,2569.1,2568.9,2.02401]
[1750046663983,29.987,2569.4,2568.9,3.18761208]
[1750046664187,0.77838,2569.0,2568.9,3.18761208]
[1750046664480,3.2078,2569.5,2568.9,43.20921208]
[1750046664682,0.77834,2569.2,2569.0,0.77838]
[1750046664871,0.77835,2569.1,2569.0,0.77838]
[1750046665072,0.77834,2569.2,2569.1,0.77835]
[1750046665277,0.77834,2569.2,2569.1,1.41655]
[1750046665480,0.77827,2569.4,2569.2,0.7783]
[1750046665782,0.7783,2569.3,2569.2,0.77832]
[1750046665982,0.77828,2569.4,2569.2,0.77831]
[1750046666171,0.77829,2569.3,2569.2,0.77831]
[1750046667282,0.77829,2569.3,2569.1,2.58014208]
[1750046667486,0.77829,2569.3,2569.1,3.14554208]
[1750046667986,0.77829,2569.3,2569.2,0.77832]
[1750046668683,0.77822,2569.6,2569.4,0.77825]
[1750046668876,3.2078,2570.0,2569.5,0.6335]
[1750046669081,0.77811,2569.9,2569.7,0.77814]
[1750046669385,0.77811,2569.9,2569.7,0.77815]
[1750046670876,3.98588,2570.0,2569.6,1.16361208]
[1750046671076,3.98588,2570.0,2569.8,0.77812]
[1750046671481,3.98588,2570.0,2569.9,1.4116]
[1750046671687,3.2078,2570.0,2569.9,1.4116]
[1750046671988,3.98587,2570.0,2569.9,1.4116]
[1750046672288,3.98587,2570.0,2569.9,0.6335]
[1750046673977,3.98587,2570.0,2569.9,1.4116]
[1750046675179,3.2078,2570.0,2569.9,1.4116]
[1750046675384,3.98587,2570.0,2569.9,1.4116]
[1750046675586,3.98587,2570.0,2569.9,0.6335]
[1750046675978,3.98587,2570.0,2569.9,1.4116]
[1750046678775,0.77807,2570.0,2569.9,0.6335]
[1750046678982,0.77813,2569.8,2569.7,0.06737406]
[1750046679182,2.18073212,2569.8,2569.7,0.84553406]
[1750046680082,0.00583783,2570.2,2569.9,0.7781]
[1750046680083,2.95882212,2570.0,2569.9,0.7781]
[1750046680287,0.77809,2570.0,2569.9,0.7781]
[1750046681987,2.96458995,2570.2,2570.1,0.77803]
[1750046682890,2.18656995,2570.2,2570.1,0.77803]
[1750046683094,0.00583783,2570.2,2570.1,0.77803]
[1750046683787,0.00583783,2570.2,2570.1,3.31533]
[1750046684592,0.00583783,2570.2,2570.1,44.11533]
[1750046684886,9.79913212,2570.6,2570.5,0.77791]
[1750046685589,3.63613212,2570.6,2570.5,0.77791]
[1750046685778,7.55937,2570.7,2570.6,0.77788]
[1750046686183,7.55937,2570.7,2570.6,1.34298]
[1750046686786,0.6185,2570.7,2570.6,1.34298]
[1750046686988,1.99723783,2570.8,2570.7,0.77785]
[1750046686989,0.00583783,2570.8,2570.7,0.77785]
[1750046687185,0.00583783,2570.8,2570.7,1.42205]
[1750046691199,0.00583783,2570.8,2570.7,2.75705]
[1750046692692,0.78365783,2570.8,2570.7,1.9792]
[1750046692909,0.78365783,2570.8,2570.7,0.6442]
[1750046693894,0.77785,2570.7,2570.6,3.7729]
[1750046694102,0.77785,2570.7,2570.6,4.55078]
[1750046694595,3.98565,2570.7,2570.6,0.5651]
[1750046694801,5.27195,2570.7,2570.6,0.5651]
[1750046695006,6.51515,2570.7,2570.6,0.5651]
[1750046700309,4.64595,2570.7,2570.6,0.5651]
[1750046700997,5.96855,2570.7,2570.6,0.5651]
[1750046702000,4.64595,2570.7,2570.6,0.5651]
[1750046702703,3.8681,2570.7,2570.6,0.5651]
[1750046703000,0.00583783,2570.8,2570.7,0.77785]
[1750046704003,0.00583783,2570.8,2570.7,3.19676208]
[1750046704907,0.00583783,2570.8,2570.7,2.03315]
[1750046705299,0.00583783,2570.8,2570.7,5.7654627]
[1750046706005,0.00583783,2570.8,2570.7,3.58473058]
[1750046706804,0.78365783,2570.8,2570.7,3.19421107]
[1750046707104,0.77773,2571.2,2570.7,8.1954127]
[1750046707407,0.7777,2571.2,2571.1,1.16085679]
[1750046707702,0.77773,2571.1,2571.0,5.14640679]
[1750046708093,0.6649,2571.4,2571.0,5.14640679]
[1750046708094,0.00583783,2571.3,2571.0,4.36865679]
[1750046708493,0.7777,2571.2,2571.1,2.10411]
[1750046708699,0.78352783,2571.3,2571.2,0.7777]
[1750046708994,0.00583783,2571.3,2571.2,0.7777]
[1750046709903,0.00583783,2571.3,2571.2,2.1401]
[1750046710209,0.00583783,2571.3,2571.2,0.7777]
[1750046710399,0.00583783,2571.3,2571.2,3.30095679]
[1750046710593,0.77757,2571.7,2571.6,0.77758]
[1750046711201,0.77758,2571.6,2571.5,0.77759]
[1750046712804,0.77757,2571.7,2571.5,0.77759]
[1750046713102,0.77758,2571.6,2571.5,0.77759]
[1750046713403,0.77758,2571.6,2571.4,1.43982]
[1750046713596,0.77761,2571.5,2571.4,1.9898]
[1750046713799,2.18073212,2571.6,2571.2,1.15992666]
[1750046714004,0.77763,2571.5,2571.4,0.77764]
[1750046714598,2.95832212,2571.6,2571.5,0.77761]
[1750046714805,0.77759,2571.6,2571.5,0.77761]
[1750046715202,0.77761,2571.5,2571.4,0.77762]
[1750046715509,0.77761,2571.5,2571.4,0.77764]
[1750046715699,0.77759,2571.6,2571.5,0.77761]
[1750046716101,0.77761,2571.5,2571.4,0.77762]
[1750046716802,0.77761,2571.5,2571.3,2.10525]
[1750046717101,0.7777,2571.2,2571.1,1.15992666]
[1750046717306,2.95843212,2571.2,2571.1,0.77773]
[1750046717503,2.95843212,2571.2,2571.0,1.93766666]
[1750046717709,2.95843212,2571.2,2571.0,0.77774]
[1750046717908,0.77773,2571.1,2571.0,0.77774]
[1750046718109,0.77767,2571.3,2571.2,0.77769]
[1750046718621,0.77762,2571.5,2571.1,3.34065878]
[1750046718910,0.77762,2571.5,2571.3,0.77766]
[1750046719114,0.77762,2571.5,2571.4,0.77764]
[1750046719514,0.77762,2571.5,2571.3,0.77765]
[1750046719706,0.77762,2571.5,2571.3,2.02165]
[1750046720016,0.77762,2571.5,2571.4,0.77764]
[1750046720214,0.77756,2571.7,2571.6,0.77756]
[1750046720607,0.77756,2571.7,2571.5,0.77759]
[1750046720906,0.77761,2571.5,2571.4,1.244]
[1750046721114,0.7776,2571.6,2571.5,0.77761]
[1750046723015,29.132397,2571.8,2571.4,2.02162]
[1750046723516,29.132397,2571.8,2571.5,0.77761]
[1750046723711,0.77759,2571.6,2571.5,0.77761]
[1750046725013,0.77759,2571.6,2571.5,1.42481]
[1750046725316,0.77757,2571.7,2571.6,0.77758]
[1750046725810,0.77758,2571.6,2571.5,1.42479]
[1750046726011,0.77758,2571.6,2571.5,0.6472]
[1750046726705,0.77764,2571.4,2571.3,10.50872666]
[1750046726911,2.95837212,2571.4,2571.3,7.30092666]
[1750046727111,2.95837212,2571.4,2571.3,1.15992666]
[1750046727311,0.77767,2571.3,2571.2,2.46302666]
[1750046727514,2.95839212,2571.4,2571.2,3.24072666]
[1750046727714,2.95839212,2571.4,2571.3,1.15992666]
[1750046728317,0.77766,2571.4,2571.3,1.93759666]
[1750046728909,1.3122,2571.7,2571.3,1.15992666]
[1750046728910,0.6549,2571.7,2571.3,1.15992666]
[1750046729116,0.7776,2571.6,2571.5,0.7776]
[1750046729612,0.6549,2571.7,2571.4,1.15992666]
[1750046729613,1.43247,2571.7,2571.6,0.77758]
[1750046729818,0.77757,2571.7,2571.6,0.77758]
[1750046730215,0.77757,2571.7,2571.6,0.6649]
[1750046730709,3.21166488,2571.8,2571.6,0.6649]
[1750046730905,0.77755,2571.7,2571.6,1.44246]
[1750046731108,3.21166488,2571.8,2571.6,1.44246]
[1750046731308,3.21166488,2571.8,2571.7,0.77755]
[1750046731516,3.98920488,2571.8,2571.7,0.77755]
[1750046732418,0.77755,2571.7,2571.6,0.6649]
[1750046732618,0.77758,2571.6,2571.5,1.15992666]
[1750046733813,0.77758,2571.6,2571.5,1.93753666]
[1750046734119,0.77757,2571.7,2571.6,0.77758]
[1750046734319,0.77757,2571.7,2571.6,1.16055042]
[1750046734618,0.77757,2571.7,2571.6,1.79295042]
[1750046734819,3.98920488,2571.8,2571.6,1.79295042]
[1750046735022,3.98920488,2571.8,2571.7,1.16055042]
[1750046736021,0.78140488,2571.8,2571.7,1.16055042]
[1750046736917,0.78140488,2571.8,2571.6,0.6324]
[1750046736918,0.84492406,2571.7,2571.6,1.40997]
[1750046737116,0.84492406,2571.7,2571.6,0.6324]
[1750046738219,0.84492406,2571.7,2571.6,1.7933579]
[1750046738417,0.84492406,2571.7,2571.6,0.6324]
[1750046739117,3.02565618,2571.7,2571.6,0.6324]
[1750046739421,0.77758,2571.6,2571.5,1.55158058]
[1750046740922,0.77758,2571.6,2571.5,2.11638058]
[1750046742424,0.77758,2571.6,2571.5,2.89399058]
[1750046742723,0.77758,2571.6,2571.5,2.11638058]
[1750046743321,0.77758,2571.6,2571.5,2.89399058]
[1750046743830,0.77758,2571.6,2571.5,2.11638058]
[1750046744024,29.49658,2571.6,2571.5,0.5648]
[1750046744328,0.77776,2571.0,2570.9,1.16102456]
[1750046744525,32.02273212,2571.0,2570.7,1.16102456]
[1750046744724,6.16635212,2570.8,2570.7,1.16102456]
[1750046745427,6.16635212,2570.8,2570.6,1.16102456]
[1750046745428,0.77785,2570.7,2570.6,1.16102456]
[1750046747435,0.77788,2570.6,2570.5,1.16102456]
[1750046747632,2.95861212,2570.6,2570.5,1.16102456]
[1750046747833,0.7779,2570.6,2570.4,2.56836456]
[1750046748036,0.7779,2570.6,2570.5,1.16102456]
[1750046748237,5.38853212,2570.8,2570.4,2.56836456]
[1750046748539,0.77789,2570.6,2570.5,0.77791]
[1750046749133,3.2078,2570.8,2570.4,1.79042456]
[1750046749334,0.77785,2570.7,2570.5,4.36882456]
[1750046749534,0.77788,2570.6,2570.5,5.70402456]
[1750046749837,0.77791,2570.5,2570.4,2.56835456]
[1750046750038,0.7779,2570.6,2570.4,2.56835456]
[1750046750229,0.7779,2570.6,2570.5,0.77791]
[1750046750435,0.77784,2570.8,2570.6,0.77786]
[1750046750738,23.722,2571.0,2570.5,3.27411456]
[1750046750932,0.77788,2570.7,2570.5,3.27411456]
[1750046751234,0.77788,2570.7,2570.6,0.84525406]
[1750046751639,0.77784,2570.8,2570.7,0.77785]
[1750046752027,0.77784,2570.8,2570.7,2.77995]
[1750046752541,0.77781,2570.9,2570.8,0.77782]
[1750046753030,0.77782,2570.8,2570.7,2.77993]
[1750046753534,0.77782,2570.9,2570.8,0.77782]
[1750046753733,5.53736453,2571.8,2570.8,11.51253212]
[1750046754029,3.21166488,2571.8,2571.3,3.33842164]
[1750046754234,0.77761,2571.5,2571.4,0.6398]
[1750046754536,3.21166488,2571.8,2571.4,1.41744]
[1750046754537,0.7776,2571.6,2571.4,1.41744]
[1750046754737,0.7776,2571.6,2571.4,2.75474]
[1750046754938,0.77761,2571.5,2571.4,2.75474]